fUST/lending_fUST_20250529
["ID","MTS","AMOUNT","RATE_DAILY","PERIOD"]
[362851361,1748491837369,-430.0,0.00019997,2]
[362851362,1748491837379,-430.0,0.00019997,2]
[362851363,1748491837389,-1031.57449884,0.00019997,2]
[362851364,1748491837399,-528.45565982,0.00019997,2]
[362851365,1748491837408,-430.0,0.00019997,2]
[362851366,1748491837419,-416.28210435,0.00019997,2]
[362851367,1748491837431,-430.0,0.00019997,2]
[362851368,1748491837441,-270.70709618,0.00019997,2]
[362851369,1748491837451,-430.0,0.00019997,2]
[362851370,1748491837460,-430.0,0.00019997,2]
[362851371,1748491837470,-406.79503389,0.00019997,2]
[362851372,1748491837479,-417.49490201,0.00019997,2]
[362851373,1748491837489,-419.83774233,0.00019997,2]
[362851374,1748491837501,-430.0,0.00019997,2]
[362851375,1748491837510,-430.0,0.00019997,2]
[362851376,1748491837519,-430.0,0.00019997,2]
[362851377,1748491837529,-430.0,0.00019997,2]
[362851378,1748491837538,-430.0,0.00019997,2]
[362851379,1748491837548,-430.0,0.00019997,2]
[362851380,1748491837558,-430.0,0.00019997,2]
[362851381,1748491837567,-430.0,0.00019997,2]
[362851382,1748491837576,-430.0,0.00019997,2]
[362851383,1748491837586,-430.0,0.00019997,2]
[362851384,1748491837595,-176.44515258,0.00019997,2]
[362851385,1748491837604,-412.67648568,0.00019997,2]
[362851386,1748491837614,-430.0,0.00019997,2]
[362851387,1748491837623,-430.0,0.00019997,2]
[362851388,1748491837633,-430.0,0.00019997,2]
[362851389,1748491837642,-500.0,0.00019997,2]
[362851390,1748491837651,-430.0,0.00019997,2]
[362851391,1748491837660,-430.36384446,0.00019997,2]
[362851392,1748491837671,-414.9975593,0.00019997,2]
[362851393,1748491837681,-430.0,0.00019997,2]
[362851394,1748491837690,-430.0,0.00019997,2]
[362851395,1748491837700,-414.98312937,0.00019997,2]
[362851396,1748491837710,-430.0,0.00019997,2]
[362851397,1748491837719,-430.0,0.00019997,2]
[362851398,1748491837729,-430.0,0.00019997,2]
[362851399,1748491837739,-235.16483327,0.00019997,2]
[362851400,1748491837751,-430.0,0.00019997,2]
[362851401,1748491837760,-430.0,0.00019997,2]
[362851402,1748491837770,-430.0,0.00019997,2]
[362851403,1748491837779,-419.00329191,0.00019997,2]
[362851404,1748491837789,-415.88086642,0.00019997,2]
[362851405,1748491837798,-437.25468501,0.00019997,2]
[362851406,1748491837808,-430.0,0.00019997,2]
[362851407,1748491837818,-430.0,0.00019997,2]
[362851408,1748491837827,-458.32348441,0.00019997,2]
[362851409,1748491837837,-434.33535545,0.00019997,2]
[362851410,1748491837847,-430.0,0.00019997,2]
[362851411,1748491837856,-430.0,0.00019997,2]
[362851412,1748491837870,-430.0,0.00019997,2]
[362851413,1748491837879,-430.0,0.00019997,2]
[362851414,1748491837888,-430.0,0.00019997,2]
[362851415,1748491837898,-310.14001524,0.00019997,2]
[362851416,1748491837909,-338.02063043,0.00019997,2]
[362851417,1748491837918,-461.81919041,0.00019997,2]
[362851418,1748491837928,-400.0,0.00019998,2]
[362851419,1748491837937,-407.63013348,0.00019998,2]
[362851420,1748491837948,-430.0,0.00019998,2]
[362851421,1748491837957,-412.15337619,0.00019998,2]
[362851422,1748491837966,-286.84109615,0.00020072,2]
[362851423,1748491837976,-282.75855283,0.00020118,2]
[362851424,1748491837986,-436.18303345,0.00020173,2]
[362851425,1748491837997,-430.0,0.00020173,2]
[362851426,1748491838007,-286.84109615,0.00020245,2]
[362851427,1748491838016,-430.0,0.00020246,2]
[362851428,1748491838026,-430.0,0.00020246,2]
[362851429,1748491838035,-430.0,0.00020246,2]
[362851430,1748491838044,-430.0,0.00020246,2]
[362851431,1748491838053,-1454.21,0.00020246,2]
[362851432,1748491838063,-263.88,0.00020246,2]
[362851433,1748491838073,-414.64924792,0.00020246,2]
[362851434,1748491838083,-1869.03,0.00020246,2]
[362851435,1748491838092,-430.0,0.00020246,2]
[362851436,1748491838102,-748.5,0.00020267,2]
[362851437,1748491838111,-2337.84,0.00020267,2]
[362851438,1748491838121,-430.0,0.00020267,2]
[362851439,1748491838131,-436.49164404,0.00020267,2]
[362851440,1748491838140,-892.14,0.00020267,2]
[362851441,1748491838150,-444.20684546,0.00020267,2]
[362851442,1748491838160,-874.5,0.00020267,2]
[362851443,1748491838170,-430.0,0.00020267,2]
[362851444,1748491838180,-430.0,0.00020267,2]
[362851445,1748491838189,-430.0,0.00020267,2]
[362851446,1748491838199,-430.0,0.00020267,2]
[362851447,1748491838209,-242.2459901,0.00020267,2]
[362851448,1748491838218,-430.0,0.00020267,2]
[362851449,1748491838227,-430.0,0.00020267,2]
[362851450,1748491838237,-430.0,0.00020267,2]
[362851451,1748491838249,-430.0,0.00020267,2]
[362851452,1748491838258,-263.08,0.00020267,2]
[362851453,1748491838268,-430.0,0.00020267,2]
[362851454,1748491838277,-430.0,0.00020267,2]
[362851455,1748491838287,-430.0,0.00020267,2]
[362851456,1748491838296,-430.0,0.00020267,2]
[362851457,1748491838311,-430.0,0.00020267,2]
[362851458,1748491838320,-430.0,0.00020267,2]
[362851459,1748491838330,-500.0,0.00020267,2]
[362851460,1748491838344,-430.0,0.00020267,2]
[362851461,1748491838357,-430.0,0.00020267,2]
[362851462,1748491838370,-430.0,0.00020267,2]
[362851463,1748491838382,-442.43467982,0.00020267,2]
[362851464,1748491838392,-471.37969676,0.00020267,2]
[362851465,1748491838405,-430.0,0.00020267,2]
[362851467,1748491838417,-442.18629898,0.00020267,2]
[362851469,1748491838430,-430.0,0.00020268,2]
[362851471,1748491838443,-504.24849208,0.00020268,2]
[362851474,1748491838456,-442.66867384,0.00020268,2]
[362851476,1748491838467,-430.0,0.00020268,2]
[362851478,1748491838481,-430.0,0.00020268,2]
[362851481,1748491838494,-430.0,0.00020268,2]
[362851483,1748491838506,-325.57,0.00020268,2]
[362851485,1748491838518,-430.0,0.00020268,2]
[362851487,1748491838530,-430.0,0.00020268,2]
[362851490,1748491838541,-430.0,0.00020268,2]
[362851492,1748491838553,-430.0,0.00020268,2]
[362851494,1748491838566,-513.82090908,0.00020268,2]
[362851497,1748491838578,-446.85156411,0.00020268,2]
[362851499,1748491838590,-430.0,0.00020268,2]
[362851501,1748491838600,-354.13332259,0.00020268,2]
[362851503,1748491838610,-430.0,0.00020268,2]
[362851505,1748491838622,-430.0,0.00020268,2]
[362851507,1748491838634,-430.0,0.00020268,2]
[362851510,1748491838646,-430.0,0.00020268,2]
[362851512,1748491838659,-497.77790784,0.00020268,2]
[362851514,1748491838672,-446.03126336,0.00020268,2]
[362851517,1748491838685,-430.0,0.00020268,2]
[362851519,1748491838698,-439.47803342,0.00020268,2]
[362851521,1748491838710,-480.22122759,0.00020268,2]
[362851524,1748491838725,-430.0,0.00020268,2]
[362851526,1748491838736,-430.0,0.00020268,2]
[362851528,1748491838748,-430.0,0.00020268,2]
[362851530,1748491838758,-430.0,0.00020268,2]
[362851532,1748491838770,-430.0,0.00020268,2]
[362851535,1748491838791,-430.0,0.00020268,2]
[362851537,1748491838806,-463.35736995,0.00020268,2]
[362851539,1748491838820,-430.0,0.00020268,2]
[362851542,1748491838831,-430.0,0.00020268,2]
[362851544,1748491838842,-430.0,0.00020268,2]
[362851546,1748491838853,-430.0,0.00020268,2]
[362851548,1748491838868,-430.0,0.00020268,2]
[362851550,1748491838881,-430.0,0.00020268,2]
[362851552,1748491838892,-430.0,0.00020268,2]
[362851555,1748491838902,-430.0,0.00020268,2]
[362851557,1748491838914,-430.0,0.00020268,2]
[362851559,1748491838926,-502.19409214,0.00020268,2]
[362851561,1748491838938,-430.0,0.00020268,2]
[362851563,1748491838949,-430.0,0.00020268,2]
[362851565,1748491838960,-441.6,0.00020268,2]
[362851568,1748491838971,-455.82626205,0.00020268,2]
[362851570,1748491838994,-430.0,0.00020268,2]
[362851572,1748491839005,-430.0,0.00020268,2]
[362851574,1748491839016,-430.0,0.00020268,2]
[362851576,1748491839027,-430.0,0.00020268,2]
[362851578,1748491839037,-226.9805444,0.00020268,2]
[362851580,1748491839048,-500.0,0.00020268,2]
[362851583,1748491839059,-430.0,0.00020268,2]
[362851585,1748491839070,-463.82136979,0.00020268,2]
[362851587,1748491839081,-430.0,0.00020268,2]
[362851589,1748491839091,-430.0,0.00020268,2]
[362851591,1748491839103,-158.09,0.00020268,2]
[362851594,1748491839114,-430.0,0.00020268,2]
[362851596,1748491839124,-430.0,0.00020268,2]
[362851598,1748491839135,-430.0,0.00020268,2]
[362851600,1748491839146,-430.0,0.00020268,2]
[362851602,1748491839158,-430.0,0.00020268,2]
[362851604,1748491839168,-430.0,0.00020268,2]
[362851607,1748491839180,-430.0,0.00020268,2]
[362851609,1748491839191,-473.80293826,0.00020268,2]
[362851611,1748491839204,-430.0,0.00020268,2]
[362851613,1748491839215,-430.0,0.00020268,2]
[362851616,1748491839227,-430.0,0.00020268,2]
[362851618,1748491839237,-430.0,0.00020268,2]
[362851620,1748491839250,-430.0,0.00020268,2]
[362851622,1748491839261,-430.0,0.00020268,2]
[362851624,1748491839272,-430.0,0.00020268,2]
[362851626,1748491839283,-430.0,0.00020268,2]
[362851629,1748491839294,-196.56,0.00020268,2]
[362851631,1748491839304,-430.0,0.00020268,2]
[362851633,1748491839317,-430.0,0.00020268,2]
[362851635,1748491839327,-430.0,0.00020268,2]
[362851637,1748491839338,-430.0,0.00020268,2]
[362851640,1748491839349,-436.93167448,0.00020268,2]
[362851642,1748491839360,-434.94814597,0.00020268,2]
[362851644,1748491839371,-457.11,0.00020268,2]
[362851646,1748491839382,-762.65,0.00020268,2]
[362851648,1748491839393,-479.19825307,0.00020268,2]
[362851651,1748491839404,-430.0,0.00020268,2]
[362851653,1748491839416,-430.0,0.00020268,2]
[362851655,1748491839427,-430.0,0.00020268,2]
[362851657,1748491839438,-500.0,0.00020268,2]
[362851659,1748491839448,-430.0,0.00020268,2]
[362851661,1748491839459,-430.0,0.00020268,2]
[362851664,1748491839470,-430.0,0.00020268,2]
[362851666,1748491839481,-430.0,0.00020268,2]
[362851668,1748491839494,-458.0,0.00020268,2]
[362851670,1748491839505,-440.10416159,0.00020268,2]
[362851672,1748491839516,-219.54328878,0.00020268,2]
[362851675,1748491839529,-430.0,0.00020269,2]
[362851690,1748491839664,-430.0,0.00020269,2]
[362851693,1748491839683,-430.0,0.00020269,2]
[362851695,1748491839692,-430.0,0.00020269,2]
[362851697,1748491839701,-430.0,0.00020269,2]
[362851699,1748491839711,-430.0,0.00020269,2]
[362851701,1748491839720,-430.0,0.00020269,2]
[362851703,1748491839730,-332.51900637,0.00020269,2]
[362851705,1748491839739,-430.0,0.00020269,2]
[362851707,1748491839751,-430.0,0.00020269,2]
[362851709,1748491839760,-430.0,0.00020269,2]
[362851711,1748491839770,-430.0,0.00020269,2]
[362851714,1748491839779,-500.0,0.00020269,2]
[362851716,1748491839788,-581.97051439,0.00020269,2]
[362851718,1748491839798,-430.0,0.0002027,2]
[362851720,1748491839808,-430.0,0.0002027,2]
[362851722,1748491839817,-430.0,0.0002027,2]
[362851724,1748491839826,-430.0,0.0002027,2]
[362851726,1748491839835,-430.0,0.0002027,2]
[362851728,1748491839844,-430.0,0.0002027,2]
[362851730,1748491839853,-430.0,0.0002027,2]
[362851732,1748491839865,-430.0,0.0002027,2]
[362851734,1748491839874,-430.0,0.0002027,2]
[362851735,1748491839883,-430.0,0.0002027,2]
[362851737,1748491839892,-430.0,0.0002027,2]
[362851740,1748491839901,-430.0,0.0002027,2]
[362851741,1748491839912,-430.0,0.0002027,2]
[362851744,1748491839921,-430.0,0.0002027,2]
[362851745,1748491839930,-430.0,0.0002027,2]
[362851749,1748491839941,-430.0,0.0002027,2]
[362851751,1748491839950,-791.36,0.0002027,2]
[362851755,1748491839960,-474.3542191,0.0002027,2]
[362851758,1748491839969,-430.0,0.0002027,2]
[362851760,1748491839978,-430.0,0.0002027,2]
[362851763,1748491839987,-430.0,0.0002027,2]
[362851766,1748491840000,-893.39,0.0002027,2]
[362851770,1748491840010,-430.0,0.0002027,2]
[362851773,1748491840020,-430.0,0.0002027,2]
[362851776,1748491840029,-430.0,0.0002027,2]
[362851779,1748491840039,-430.0,0.0002027,2]
[362851782,1748491840047,-206.59931809,0.0002027,2]
[362851784,1748491840057,-430.0,0.0002027,2]
[362851787,1748491840066,-430.0,0.0002027,2]
[362851790,1748491840075,-430.0,0.0002027,2]
[362851793,1748491840085,-430.0,0.0002027,2]
[362851796,1748491840094,-336.36575674,0.0002027,2]
[362851799,1748491840103,-1466.94,0.0002027,2]
[362851802,1748491840113,-430.0,0.0002027,2]
[362851805,1748491840122,-181.82,0.0002027,2]
[362851808,1748491840132,-471.994809,0.00020271,2]
[362851810,1748491840141,-440.26183374,0.00020271,2]
[362851812,1748491840150,-430.0,0.00020271,2]
[362851814,1748491840160,-430.0,0.00020271,2]
[362851816,1748491840169,-430.0,0.00020271,2]
[362851818,1748491840178,-207.5276661,0.00020271,2]
[362851820,1748491840188,-430.0,0.00020271,2]
[362851822,1748491840197,-430.0,0.00020271,2]
[362851824,1748491840206,-436.47297212,0.00020271,2]
[362851826,1748491840216,-430.0,0.00020271,2]
[362851828,1748491840225,-430.0,0.00020271,2]
[362851830,1748491840234,-430.0,0.00020271,2]
[362851832,1748491840247,-430.0,0.00020271,2]
[362851834,1748491840256,-430.0,0.00020271,2]
[362851836,1748491840265,-430.0,0.00020271,2]
[362851838,1748491840274,-444.87321988,0.00020271,2]
[362851840,1748491840283,-430.0,0.00020271,2]
[362851842,1748491840293,-430.0,0.00020271,2]
[362851844,1748491840302,-430.0,0.00020271,2]
[362851846,1748491840311,-430.41370067,0.00020271,2]
[362851848,1748491840320,-430.0,0.00020271,2]
[362851850,1748491840329,-430.0,0.00020271,2]
[362851853,1748491840339,-430.0,0.00020271,2]
[362851856,1748491840348,-483.14331154,0.00020271,2]
[362851859,1748491840357,-430.0,0.00020271,2]
[362851862,1748491840368,-500.0,0.00020271,2]
[362851865,1748491840377,-430.0,0.00020271,2]
[362851868,1748491840386,-430.0,0.00020271,2]
[362851871,1748491840396,-400.0,0.00020271,2]
[362851874,1748491840405,-422.9818722,0.00020271,2]
[362851876,1748491840414,-430.0,0.00020271,2]
[362851879,1748491840422,-371.15546113,0.00020271,2]
[362851882,1748491840431,-430.0,0.00020271,2]
[362851885,1748491840440,-425.0,0.00020271,2]
[362851888,1748491840450,-430.0,0.00020271,2]
[362851891,1748491840459,-430.0,0.00020271,2]
[362851894,1748491840468,-481.34448504,0.00020271,2]
[362851896,1748491840478,-477.8481705,0.00020271,2]
[362851899,1748491840487,-441.14156027,0.00020271,2]
[362851902,1748491840497,-430.0,0.00020271,2]
[362851905,1748491840506,-371.85422467,0.00020272,2]
[362851908,1748491840515,-286.84109615,0.00020417,3]
[362851911,1748491840525,-430.0,0.00020447,2]
[362851914,1748491840535,-430.0,0.0002052,2]
[362851917,1748491840546,-289.29,0.0002052,2]
[362851920,1748491840556,-543.64,0.0002052,2]
[362851923,1748491840565,-430.0,0.0002052,2]
[362851925,1748491840575,-1454.21,0.0002052,2]
[362851928,1748491840584,-1869.03,0.0002052,2]
[362851931,1748491840594,-430.0,0.0002052,2]
[362851934,1748491840603,-748.5,0.00020541,2]
[362851937,1748491840612,-2337.84,0.00020541,2]
[362851940,1748491840622,-430.0,0.00020541,2]
[362851943,1748491840631,-892.14,0.00020541,2]
[362851945,1748491840640,-874.5,0.00020541,2]
[362851948,1748491840649,-430.0,0.00020541,2]
[362851951,1748491840658,-430.0,0.00020541,2]
[362851954,1748491840667,-430.0,0.00020541,2]
[362851957,1748491840676,-430.0,0.00020541,2]
[362851959,1748491840686,-430.0,0.00020541,2]
[362851962,1748491840695,-169.0,0.00020541,2]
[362851965,1748491840704,-430.0,0.00020541,2]
[362851969,1748491840714,-430.0,0.00020541,2]
[362851972,1748491840723,-430.0,0.00020541,2]
[362851973,1748491840732,-304.22,0.00020541,2]
[362851975,1748491840741,-430.0,0.00020541,2]
[362851977,1748491840753,-430.0,0.00020541,2]
[362851979,1748491840763,-430.0,0.00020541,2]
[362851981,1748491840771,-430.0,0.00020541,2]
[362851983,1748491840780,-430.0,0.00020542,2]
[362851985,1748491840789,-258.18,0.00020542,2]
[362851987,1748491840798,-430.0,0.00020542,2]
[362851990,1748491840807,-430.0,0.00020542,2]
[362851993,1748491840817,-430.0,0.00020542,2]
[362851996,1748491840826,-430.0,0.00020542,2]
[362851999,1748491840835,-430.0,0.00020542,2]
[362852004,1748491840844,-430.0,0.00020542,2]
[362852008,1748491840854,-441.27121487,0.00020542,2]
[362852011,1748491840864,-430.0,0.00020542,2]
[362852014,1748491840875,-430.0,0.00020542,2]
[362852016,1748491840884,-430.0,0.00020542,2]
[362852019,1748491840894,-322.91,0.00020542,2]
[362852022,1748491840903,-430.0,0.00020542,2]
[362852025,1748491840914,-430.0,0.00020542,2]
[362852028,1748491840924,-430.0,0.00020542,2]
[362852031,1748491840932,-430.0,0.00020542,2]
[362852034,1748491840942,-436.22542399,0.00020542,2]
[362852037,1748491840952,-430.0,0.00020542,2]
[362852040,1748491840961,-252.9710482,0.00020542,2]
[362852043,1748491840970,-457.67069498,0.00020542,2]
[362852046,1748491840979,-430.0,0.00020542,2]
[362852049,1748491840988,-430.0,0.00020542,2]
[362852052,1748491840998,-328.16,0.00020542,2]
[362852055,1748491841007,-336.17725696,0.00020542,2]
[362852058,1748491841016,-201.88,0.00020542,2]
[362852061,1748491841025,-430.0,0.00020542,2]
[362852064,1748491841034,-245.6,0.00020542,2]
[362852067,1748491841043,-430.0,0.00020542,2]
[362852070,1748491841052,-430.0,0.00020542,2]
[362852073,1748491841061,-430.0,0.00020542,2]
[362852075,1748491841070,-430.0,0.00020542,2]
[362852078,1748491841079,-451.36961838,0.00020542,2]
[362852081,1748491841089,-430.0,0.00020542,2]
[362852084,1748491841098,-430.0,0.00020542,2]
[362852087,1748491841107,-762.65,0.00020542,2]
[362852090,1748491841116,-319.17,0.00020542,2]
[362852093,1748491841125,-430.0,0.00020542,2]
[362852096,1748491841135,-430.0,0.00020542,2]
[362852099,1748491841144,-500.0,0.00020542,2]
[362852102,1748491841154,-430.0,0.00020542,2]
[362852105,1748491841164,-466.72,0.00020542,2]
[362852108,1748491841173,-430.0,0.00020542,2]
[362852111,1748491841182,-430.0,0.00020543,2]
[362852114,1748491841192,-522.8634833,0.00020543,2]
[362852117,1748491841201,-202.86,0.00020543,2]
[362852120,1748491841210,-501.09436803,0.00020543,2]
[362852123,1748491841220,-430.0,0.00020543,2]
[362852126,1748491841229,-430.0,0.00020543,2]
[362852129,1748491841238,-510.68934127,0.00020543,2]
[362852132,1748491841253,-453.19001993,0.00020544,2]
[362852134,1748491841262,-488.95,0.00020544,2]
[362852136,1748491841273,-430.0,0.00020544,2]
[362852138,1748491841282,-430.0,0.00020544,2]
[362852140,1748491841292,-430.0,0.00020544,2]
[362852142,1748491841301,-430.0,0.00020544,2]
[362852144,1748491841311,-430.0,0.00020544,2]
[362852146,1748491841321,-430.0,0.00020544,2]
[362852148,1748491841331,-430.0,0.00020544,2]
[362852150,1748491841340,-430.0,0.00020544,2]
[362852152,1748491841349,-430.0,0.00020544,2]
[362852154,1748491841358,-430.0,0.00020544,2]
[362852156,1748491841368,-430.0,0.00020544,2]
[362852158,1748491841378,-436.44373008,0.00020544,2]
[362852160,1748491841388,-791.36,0.00020544,2]
[362852162,1748491841398,-430.0,0.00020544,2]
[362852164,1748491841408,-430.0,0.00020544,2]
[362852166,1748491841418,-430.0,0.00020544,2]
[362852169,1748491841427,-893.39,0.00020544,2]
[362852170,1748491841436,-430.0,0.00020544,2]
[362852172,1748491841446,-322.88,0.00020544,2]
[362852174,1748491841455,-430.0,0.00020544,2]
[362852176,1748491841464,-524.09,0.00020544,2]
[362852178,1748491841473,-430.0,0.00020544,2]
[362852181,1748491841483,-208.57,0.00020544,2]
[362852182,1748491841492,-430.0,0.00020544,2]
[362852184,1748491841504,-1466.94,0.00020544,2]
[362852186,1748491841513,-430.0,0.00020544,2]
[362852188,1748491841522,-430.0,0.00020545,2]
[362852190,1748491841531,-430.0,0.00020545,2]
[362852192,1748491841541,-441.31971869,0.00020545,2]
[362852194,1748491841550,-430.0,0.00020545,2]
[362852196,1748491841559,-409.41407832,0.00020545,2]
[362852198,1748491841568,-430.0,0.00020545,2]
[362852200,1748491841578,-169.56129011,0.00020545,2]
[362852202,1748491841587,-430.0,0.00020545,2]
[362852204,1748491841596,-430.0,0.00020545,2]
[362852206,1748491841605,-445.14670364,0.00020545,2]
[362852208,1748491841616,-432.76033934,0.00020545,2]
[362852210,1748491841626,-430.0,0.00020545,2]
[362852212,1748491841636,-451.50363553,0.00020545,2]
[362852214,1748491841645,-500.0,0.00020545,2]
[362852216,1748491841655,-430.0,0.00020545,2]
[362852218,1748491841665,-430.0,0.00020545,2]
[362852220,1748491841674,-430.0,0.00020545,2]
[362852222,1748491841684,-458.29222238,0.00020545,2]
[362852224,1748491841693,-501.22688919,0.00020545,2]
[362852226,1748491841702,-430.0,0.00020545,2]
[362852228,1748491841712,-286.84109615,0.0002059,3]
[362852230,1748491841722,-348.18,0.00020702,2]
[362852232,1748491841733,-449.37128976,0.00020721,2]
[362852234,1748491841742,-286.84109615,0.00020762,3]
[362852236,1748491841754,-430.0,0.00020794,2]
[362852238,1748491841763,-430.0,0.00020794,2]
[362852240,1748491841773,-1454.21,0.00020794,2]
[362852242,1748491841782,-1869.03,0.00020794,2]
[362852244,1748491841791,-437.08,0.00020794,2]
[362852246,1748491841801,-748.5,0.00020815,2]
[362852248,1748491841811,-2337.84,0.00020815,2]
[362852250,1748491841823,-430.0,0.00020815,2]
[362852252,1748491841835,-892.14,0.00020815,2]
[362852254,1748491841845,-874.5,0.00020815,2]
[362852256,1748491841856,-430.0,0.00020815,2]
[362852258,1748491841867,-430.0,0.00020815,2]
[362852260,1748491841877,-430.0,0.00020815,2]
[362852262,1748491841886,-430.0,0.00020815,2]
[362852264,1748491841895,-430.0,0.00020815,2]
[362852266,1748491841904,-430.0,0.00020815,2]
[362852268,1748491841914,-430.0,0.00020815,2]
[362852270,1748491841923,-430.0,0.00020815,2]
[362852272,1748491841933,-430.0,0.00020815,2]
[362852274,1748491841942,-430.0,0.00020815,2]
[362852276,1748491841951,-430.0,0.00020815,2]
[362852278,1748491841961,-430.0,0.00020815,2]
[362852280,1748491841970,-430.0,0.00020816,2]
[362852282,1748491841980,-457.2650657,0.00020816,2]
[362852284,1748491841989,-430.0,0.00020816,2]
[362852286,1748491842001,-430.0,0.00020816,2]
[362852288,1748491842010,-255.46,0.00020816,2]
[362852290,1748491842019,-430.0,0.00020816,2]
[362852292,1748491842029,-430.0,0.00020816,2]
[362852294,1748491842038,-430.0,0.00020816,2]
[362852296,1748491842048,-430.0,0.00020816,2]
[362852298,1748491842058,-430.0,0.00020816,2]
[362852300,1748491842067,-167.39716575,0.00020816,2]
[362852302,1748491842076,-430.0,0.00020816,2]
[362852304,1748491842085,-430.0,0.00020816,2]
[362852306,1748491842094,-430.0,0.00020816,2]
[362852308,1748491842103,-430.0,0.00020816,2]
[362852310,1748491842112,-430.0,0.00020816,2]
[362852312,1748491842121,-430.0,0.00020816,2]
[362852325,1748491842233,-430.0,0.00020816,2]
[362852327,1748491842242,-430.0,0.00020816,2]
[362852329,1748491842254,-762.65,0.00020816,2]
[362852331,1748491842263,-430.0,0.00020816,2]
[362852333,1748491842272,-430.0,0.00020816,2]
[362852335,1748491842281,-500.0,0.00020816,2]
[362852337,1748491842290,-430.0,0.00020816,2]
[362852339,1748491842299,-219.78709743,0.00020817,2]
[362852341,1748491842308,-430.0,0.00020817,2]
[362852343,1748491842317,-430.0,0.00020817,2]
[362852345,1748491842326,-430.0,0.00020818,2]
[362852347,1748491842336,-427.24,0.00020818,2]
[362852349,1748491842345,-437.44467825,0.00020818,2]
[362852351,1748491842355,-442.48814772,0.00020818,2]
[362852352,1748491842364,-430.0,0.00020818,2]
[362852354,1748491842374,-419.02,0.00020818,2]
[362852356,1748491842383,-430.0,0.00020818,2]
[362852358,1748491842393,-430.0,0.00020818,2]
[362852361,1748491842402,-438.72586793,0.00020818,2]
[362852362,1748491842411,-430.0,0.00020818,2]
[362852364,1748491842420,-494.67514667,0.00020818,2]
[362852367,1748491842430,-791.36,0.00020818,2]
[362852368,1748491842441,-430.0,0.00020818,2]
[362852370,1748491842451,-430.0,0.00020818,2]
[362852372,1748491842460,-430.0,0.00020818,2]
[362852374,1748491842469,-893.39,0.00020818,2]
[362852376,1748491842478,-430.0,0.00020818,2]
[362852378,1748491842487,-430.0,0.00020818,2]
[362852380,1748491842498,-430.0,0.00020818,2]
[362852382,1748491842508,-1466.94,0.00020818,2]
[362852385,1748491842518,-430.0,0.00020818,2]
[362852386,1748491842527,-461.06129069,0.00020819,2]
[362852388,1748491842536,-430.0,0.00020819,2]
[362852390,1748491842546,-430.0,0.00020819,2]
[362852392,1748491842555,-446.13870317,0.00020819,2]
[362852394,1748491842564,-430.0,0.00020819,2]
[362852396,1748491842573,-516.16789868,0.00020819,2]
[362852398,1748491842583,-500.0,0.00020819,2]
[362852400,1748491842592,-430.0,0.00020819,2]
[362852402,1748491842602,-430.0,0.00020819,2]
[362852404,1748491842611,-211.16174167,0.00020819,2]
[362852406,1748491842621,-430.0,0.00020819,2]